bitfinex-derivatives/quotes_ETHF0:USTF0_20260208
["timestamp","ask_amount","ask_price","bid_price","bid_amount"]
[1770572349975,0.5875363,2093.8,2092.6,0.10153695]
[1770572351073,0.5875363,2093.8,2092.5,0.23913]
[1770572351273,0.5875363,2093.8,2092.5,0.34066695]
[1770572352276,0.58336092,2093.6,2092.5,0.34066695]
[1770572352675,0.58336092,2093.6,2092.5,0.23913]
[1770572356167,0.58336092,2093.6,2093.0,0.09417576]
[1770572356370,0.58336092,2093.6,2093.1,0.09417576]
[1770572356573,0.58336092,2093.6,2092.5,6.21371482]
[1770572356774,0.58336092,2093.6,2093.0,0.23907]
[1770572356981,0.00417538,2093.8,2093.1,0.23906]
[1770572356982,0.59560891,2093.8,2093.1,0.23906]
[1770572358983,0.59560891,2093.8,2092.5,0.23912]
[1770572359279,0.59560891,2093.8,2092.6,0.00676915]
[1770572359874,0.59560891,2093.8,2092.8,0.00676915]
[1770572360576,0.59560891,2093.8,2092.7,0.23911]
[1770572363282,0.59560891,2093.8,2092.7,0.24014672]
[1770572364085,0.59560891,2093.8,2092.8,0.0008062]
[1770572364480,0.59560891,2093.8,2092.9,0.0008062]
[1770572366085,0.59560891,2093.8,2092.8,0.23909]
[1770572366387,0.59560891,2093.8,2092.8,0.24051516]
[1770572367684,0.59560891,2093.8,2092.9,0.00156152]
[1770572371085,0.59560891,2093.8,2092.8,0.23909]
[1770572371687,0.5655263,2093.6,2092.5,0.56385242]
[1770572371887,0.5655263,2093.6,2092.6,0.56385242]
[1770572372083,0.5655263,2093.6,2092.9,0.23908]
[1770572372678,0.5655263,2093.6,2092.9,0.80293242]
[1770572373077,0.5655263,2093.6,2092.9,0.23908]
[1770572375086,0.5655263,2093.6,2092.9,0.80293242]
[1770572375281,0.5655263,2093.6,2093.0,0.56385242]
[1770572375683,0.5655263,2093.6,2093.0,0.06385242]
[1770572375988,0.5655263,2093.6,2092.9,0.57266709]
[1770572376193,0.5655263,2093.6,2092.9,0.23908]
[1770572378792,0.5655263,2093.6,2092.9,0.57294769]
[1770572379090,0.5655263,2093.6,2092.9,0.23908]
[1770572381690,0.5655263,2093.6,2092.4,0.00595565]
[1770572381889,0.5655263,2093.6,2092.4,0.33491676]
[1770572383093,0.5655263,2093.6,2092.4,0.00595565]
[1770572384592,0.5655263,2093.6,2092.4,0.34134822]
[1770572387098,0.5655263,2093.6,2092.5,0.33419827]
[1770572387299,0.5655263,2093.6,2092.6,0.33419827]
[1770572390303,0.5655263,2093.6,2092.5,0.23913]
[1770572392703,0.5655263,2093.6,2092.5,0.57463302]
[1770572393198,0.5655263,2093.6,2092.6,0.33550302]
[1770572396703,0.5655263,2093.6,2092.5,0.23913]
[1770572397101,1.78164173,2093.4,2092.2,4.22219793]
[1770572397310,1.78164173,2093.4,2091.9,7.14876615]
[1770572397311,0.58996707,2093.1,2091.9,0.33717989]
[1770572397606,0.58996707,2093.1,2091.9,0.33449737]
[1770572398299,0.58996707,2093.1,2091.9,0.33909193]
[1770572398799,0.58996707,2093.1,2091.9,0.00459456]
[1770572399003,0.58996707,2092.9,2091.5,0.57373737]
[1770572399995,0.58996707,2092.9,2091.5,0.57761525]
[1770572400293,0.58996707,2092.5,2091.5,0.00387788]
[1770572400501,0.58996707,2092.3,2091.5,0.3236447]
[1770572400700,0.59584326,2092.3,2091.5,0.3236447]
[1770572402405,0.58996707,2092.7,2091.8,0.32309203]
[1770572402902,0.58996707,2092.7,2091.9,0.31721584]
[1770572403105,0.58996707,2093.2,2092.0,0.31721584]
[1770572403502,0.59360255,2093.2,2092.0,0.31721584]
[1770572403897,0.59360255,2093.2,2092.0,0.23919]
[1770572404103,0.59360255,2093.2,2092.0,0.56109014]
[1770572405009,0.59360255,2093.2,2092.1,0.32190014]
[1770572410706,0.58996707,2092.8,2091.6,0.32049449]
[1770572414806,6.28415646,2092.6,2091.5,0.24311788]
[1770572415007,0.57313035,2092.5,2091.5,0.24311788]
[1770572415913,0.57313035,2092.5,2091.5,0.5759758]
[1770572416516,0.57313035,2092.5,2091.6,0.33285792]
[1770572421221,0.57313035,2092.5,2091.7,0.34733601]
[1770572422213,0.57313035,2092.5,2091.8,0.34412284]
[1770572422918,0.54258768,2093.0,2091.9,0.34412284]
[1770572423320,0.54258768,2092.9,2091.9,0.34412284]
[1770572425028,0.54258768,2092.9,2092.0,0.35247498]
[1770572425428,0.54258768,2092.9,2092.0,0.03327079]
[1770572429029,0.54258768,2092.9,2092.2,0.26459562]
[1770572429231,0.54258768,2092.9,2092.3,0.02543562]
[1770572429433,0.54258768,2092.9,2092.2,0.25807236]
[1770572429735,0.54258768,2092.9,2092.3,0.01891236]
[1770572430927,0.58198167,2093.0,2092.3,0.01891236]
[1770572432132,0.58198167,2093.0,2092.2,0.23916]
[1770572432331,0.58198167,2093.0,2092.0,2.84616489]
[1770572432535,0.58198167,2093.0,2091.8,2.82375359]
[1770572432739,0.58198167,2093.0,2091.7,3.06297359]
[1770572432938,0.58198167,2093.0,2091.7,3.08538489]
[1770572433238,0.58198167,2093.0,2091.7,7.48771768]
[1770572433434,0.58198167,2093.0,2091.8,4.40294858]
[1770572433633,0.58198167,2093.0,2091.7,3.08538489]
[1770572433942,0.58198167,2093.0,2091.8,0.02347631]
[1770572435541,0.58198167,2093.0,2091.9,0.02203123]
[1770572436342,0.58198167,2093.0,2091.8,0.23921]
[1770572436737,0.58198167,2093.0,2091.8,0.26124123]
[1770572437039,0.58198167,2093.0,2091.8,0.23921]
[1770572437438,0.58198167,2093.0,2091.7,2.82375359]
[1770572437639,5.71466159,2093.2,2091.5,0.02581174]
[1770572437640,0.58047092,2092.8,2091.5,2.82763147]
[1770572437840,6.29149703,2092.8,2091.5,0.02581174]
[1770572438040,0.58047092,2092.7,2091.5,0.00387788]
[1770572438247,0.58047092,2092.7,2091.5,0.02581174]
[1770572439242,0.58047092,2092.5,2091.5,0.00387788]
[1770572440139,0.58047092,2092.5,2091.5,0.0201059]
[1770572449350,0.58047092,2092.5,2091.6,0.0227338]
[1770572449953,0.58047092,2092.5,2091.8,0.02396615]
[1770572450351,0.58047092,2092.5,2091.7,0.23922]
[1770572458966,0.58047092,2092.5,2091.8,0.23921]
[1770572459467,0.59413116,2093.1,2092.2,0.23916]
[1770572460867,0.59413116,2093.1,2091.8,2.830632]
[1770572461660,0.60690963,2092.9,2091.6,3.069852]
[1770572461862,0.60690963,2092.9,2091.8,0.23921]
[1770572462061,0.60690963,2092.9,2091.7,2.830632]
[1770572462366,0.60690963,2092.9,2091.8,7.24815046]
[1770572462567,0.60690963,2092.9,2091.8,2.830632]
[1770572463170,0.60690963,2092.9,2092.0,0.23918]
[1770572466570,0.60690963,2092.9,2091.7,2.830632]
[1770572467272,0.60690963,2092.9,2091.6,3.04642298]
[1770572467469,0.60690963,2092.9,2091.6,2.830632]
[1770572467670,0.57672057,2092.6,2091.5,0.00387788]
[1770572467866,0.57672057,2092.5,2091.5,0.00387788]
[1770572468874,0.57672057,2092.2,2091.2,2.830632]
[1770572469172,0.57672057,2092.2,2091.0,0.21786021]
[1770572470070,0.57672057,2092.2,2091.0,0.22220154]
[1770572470269,0.57672057,2092.2,2091.0,0.00434133]
[1770572470472,0.57672057,2092.2,2091.0,0.37136875]
[1770572470674,6.28774668,2092.2,2091.0,0.37136875]
[1770572470977,0.57672057,2092.1,2091.0,0.37136875]
[1770572472376,0.57672057,2092.1,2091.0,0.57684952]
[1770572473977,0.57672057,2092.1,2091.1,0.20861051]
[1770572474178,0.57672057,2092.1,2091.0,0.37136875]
[1770572474179,6.28774668,2092.1,2091.0,0.00434133]
[1770572474479,0.57672057,2092.0,2091.0,0.21295184]
[1770572476082,0.57672057,2092.0,2091.0,0.00434133]
[1770572483091,0.57672057,2092.0,2091.0,0.20560939]
[1770572485800,0.57672057,2092.0,2091.0,0.00434133]
[1770572485998,0.53910212,2091.8,2090.7,0.20045834]
[1770572486903,0.53910212,2091.8,2090.7,0.20429719]
[1770572487995,0.53910212,2091.8,2090.9,0.23931]
[1770572488203,0.53910212,2091.8,2091.0,0.19951058]
[1770572492996,0.53910212,2091.8,2091.1,0.20876858]
[1770572493393,0.53910212,2091.8,2091.0,1.18964987]
[1770572494000,0.53910212,2091.8,2090.9,0.23931]
[1770572494199,6.90067598,2092.1,2090.9,0.23931]
[1770572494200,0.592543,2091.6,2090.9,0.23931]
[1770572494505,0.592543,2091.4,2090.7,0.35715698]
[1770572496009,0.592543,2091.4,2090.7,0.00383885]
[1770572497199,0.59131187,2091.0,2090.2,14.30855112]
[1770572497405,0.59131187,2091.0,2090.3,4.42837618]
[1770572498002,0.59131187,2091.0,2090.3,4.43165853]
[1770572500704,0.59131187,2091.0,2090.3,4.77490638]
[1770572502109,0.5906263,2091.2,2090.6,0.00175473]
[1770572505107,0.58493033,2092.2,2091.6,0.0042264]
[1770572505313,1.18964987,2093.4,2091.6,0.0042264]
[1770572505314,1.18964987,2093.3,2092.1,0.57186786]
[1770572505610,0.57119529,2093.4,2092.4,0.57186786]
[1770572505803,1.18964987,2093.1,2092.4,0.57186786]
[1770572506010,0.57119529,2093.0,2092.4,0.07186786]
[1770572506309,0.57119529,2092.8,2092.4,0.00455789]
[1770572506705,0.57119529,2092.8,2091.9,0.09427276]
[1770572507705,0.57119529,2092.8,2091.9,0.09747132]
[1770572510216,0.57119529,2092.9,2092.1,0.07241486]
[1770572516316,0.58119529,2092.9,2092.1,0.07241486]
[1770572516823,0.58119529,2092.9,2092.0,0.23919]
[1770572517420,0.58119529,2092.9,2092.0,0.30075855]
[1770572520229,0.58119529,2092.9,2092.1,0.06379262]
[1770572524331,0.58119529,2092.9,2092.2,0.05936172]
[1770572524532,0.58119529,2092.9,2092.3,0.05936172]
[1770572526131,0.58119529,2092.9,2092.4,0.05718432]
[1770572526330,0.58119529,2092.9,2092.3,0.23915]
[1770572526632,0.58119529,2092.9,2092.3,0.29633432]
[1770572527328,0.01,2092.9,2092.4,0.05718432]
[1770572527927,0.58119529,2092.9,2092.4,0.05718432]
[1770572528128,0.58119529,2092.9,2092.5,0.05920169]
[1770572528433,0.58119529,2092.9,2092.4,0.23914]
[1770572533444,0.58119529,2092.9,2092.4,0.24237305]
[1770572534034,0.58119529,2092.9,2092.5,0.00323305]
[1770572534443,0.58119529,2092.9,2092.4,0.24237305]
[1770572534835,0.58119529,2092.9,2092.5,0.00452426]
[1770572535742,0.58119529,2092.9,2092.4,0.24099082]
[1770572536143,0.58119529,2092.9,2092.4,0.23914]
[1770572536442,0.58119529,2092.9,2092.4,0.24099082]
[1770572536650,0.58119529,2092.9,2092.5,0.00185082]
[1770572539143,0.58119529,2092.9,2092.4,0.23914]
[1770572540242,0.58119529,2092.9,2092.4,4.818089]
[1770572540442,0.58119529,2092.9,2092.4,0.23914]
[1770572541347,0.58119529,2092.9,2092.4,4.81889508]
[1770572541543,0.58119529,2092.9,2092.4,0.23914]
[1770572544456,0.58119529,2092.9,2092.3,8.81652842]
[1770572544657,0.58119529,2092.9,2092.1,4.23707363]
[1770572545353,0.58119529,2092.9,2092.1,4.46987863]
[1770572545551,0.58119529,2092.9,2092.4,0.23913]
[1770572548360,0.01,2092.9,2092.5,0.23321384]
[1770572548657,0.58447533,2092.9,2092.5,0.23321384]
[1770572548859,0.01,2092.9,2092.5,0.23321384]
[1770572549250,0.58447533,2092.9,2092.5,0.23321384]
[1770572551059,0.58447533,2092.9,2092.4,0.23913]
[1770572553950,0.58447533,2092.9,2091.9,0.00319856]
[1770572553951,0.57447533,2092.8,2091.9,0.00319856]
[1770572554151,0.57447533,2092.8,2091.9,0.23689752]
[1770572556758,0.57447533,2092.8,2091.9,0.00319856]
[1770572559260,0.57447533,2092.8,2091.4,3.07626185]
[1770572559455,0.57447533,2092.8,2091.4,7.64185637]
[1770572559760,0.57447533,2092.8,2091.4,3.07626185]
[1770572560160,0.57447533,2092.8,2091.4,0.24772338]
[1770572560554,0.57447533,2092.8,2091.3,3.07925131]
[1770572560756,0.57447533,2092.8,2091.4,0.25071284]
[1770572562763,0.57447533,2092.8,2091.3,0.23557366]
[1770572563367,0.57447533,2092.8,2091.2,0.47485366]
[1770572563866,0.57447533,2092.7,2091.2,0.23928]
[1770572564055,7.07933958,2092.8,2091.2,0.23928]
[1770572564056,0.57447533,2092.5,2091.2,0.47860715]
[1770572564461,0.57447533,2092.5,2091.3,0.23932715]
[1770572567468,0.57447533,2092.5,2091.4,0.23657103]
[1770572568570,0.57447533,2092.5,2091.5,0.23657103]
[1770572571271,0.57447533,2092.5,2091.6,0.23528398]
[1770572571479,0.57447533,2092.5,2091.7,0.23528398]
[1770572571670,0.57447533,2092.5,2091.8,0.23622131]
[1770572572077,0.57447533,2092.5,2091.7,0.23922]
[1770572573377,0.57447533,2092.5,2091.7,0.24836858]
[1770572574474,0.57447533,2092.5,2091.7,0.23922]
[1770572576167,0.57447533,2092.5,2091.7,0.24304469]
[1770572576678,0.57447533,2092.5,2091.7,0.23922]
[1770572577286,0.57447533,2092.5,2091.7,0.24304469]
[1770572578980,0.57447533,2092.5,2091.7,0.23922]
[1770572580174,0.58921364,2092.2,2091.2,2.8336081]
[1770572580374,0.58921364,2092.2,2091.2,0.00506963]
[1770572581682,0.58921364,2092.2,2091.3,0.00444794]
[1770572583182,0.58921364,2092.2,2091.4,0.00444794]
[1770572585883,0.58921364,2092.2,2091.4,2.82853847]
[1770572586287,0.58921364,2092.2,2091.5,3.06777847]
[1770572586477,0.59200698,2092.5,2091.6,0.00433854]
[1770572586987,0.58957918,2092.8,2092.0,0.00433854]
[1770572588289,0.58957918,2092.8,2092.1,0.00433854]
[1770572590790,0.58957918,2092.8,2092.2,0.01235635]
[1770572591091,0.59557028,2092.9,2092.3,0.01235635]
[1770572591294,0.01,2092.9,2092.3,0.01235635]
[1770572591787,0.01,2092.9,2092.4,0.01235635]
[1770572593385,0.59672049,2092.9,2092.4,0.01235635]
[1770572593899,0.01,2092.9,2092.5,0.01005593]
[1770572594393,0.00427653,2093.0,2092.5,0.01005593]
[1770572594591,0.58672049,2093.1,2092.5,0.01005593]
[1770572595087,0.58519616,2093.2,2092.6,0.01325987]
[1770572595293,7.31826958,2094.3,2092.7,0.01325987]
[1770572595294,0.58519616,2094.2,2092.7,0.01325987]
[1770572595597,0.58520299,2094.0,2092.7,0.01753639]
[1770572595800,0.58520299,2094.0,2092.8,0.01324622]
[1770572604596,0.58520299,2094.0,2092.7,0.24337652]
[1770572604597,0.58520299,2094.0,2092.7,0.2667609]
[1770572604900,0.58520299,2094.0,2092.8,0.02338438]
[1770572607406,0.58520299,2094.0,2093.2,0.02392391]
[1770572608906,0.58520299,2094.0,2093.1,0.23905]
[1770572609102,0.58520299,2094.0,2092.7,0.00427652]
[1770572609409,0.58520299,2094.0,2092.7,0.02708621]
[1770572609603,0.58520299,2094.0,2092.7,0.26618621]
[1770572609809,0.58520299,2094.0,2092.7,0.00427652]
[1770572610403,0.58520299,2094.0,2092.7,0.02708621]
[1770572611108,0.58520299,2094.0,2092.8,0.02429724]
[1770572611805,0.58520299,2094.0,2092.9,0.02429724]
[1770572614511,0.58520299,2094.0,2093.0,0.02022983]
[1770572617331,0.58520299,2094.0,2093.1,0.02121198]
[1770572618535,0.58520299,2094.0,2093.2,0.02084018]
[1770572618831,0.58520299,2094.0,2093.1,2.81299375]
[1770572619324,0.58520299,2094.0,2093.1,3.05205375]
[1770572619724,0.58520299,2094.0,2093.2,0.23905]
[1770572620228,0.58520299,2094.0,2093.2,3.05204375]
[1770572620727,0.58520299,2094.0,2093.3,2.81299375]
[1770572620933,0.58520299,2094.0,2093.4,0.23903]
[1770572621529,0.58520299,2094.0,2093.4,3.05202375]
[1770572622321,0.58520299,2094.0,2093.4,0.23903]
[1770572622532,0.58520299,2094.0,2093.5,0.00443886]
[1770572622928,0.58520299,2094.0,2093.6,1.19114061]
[1770572623328,0.58520299,2094.0,2093.6,0.69114061]
[1770572624036,0.00498701,2094.2,2093.8,1.74269495]
[1770572624236,0.5581774,2094.2,2093.8,1.74269495]
[1770572625236,0.5581774,2094.2,2093.8,1.18670175]
[1770572625736,0.5581774,2094.2,2093.8,1.77507449]
[1770572626331,0.5581774,2094.2,2093.8,1.27657449]
[1770572626830,0.5581774,2094.2,2093.5,0.58780606]
[1770572627031,0.5581774,2094.2,2093.4,4.82653156]
[1770572627332,0.5581774,2094.2,2093.4,2.01353781]
[1770572627532,0.5581774,2094.2,2093.5,0.58780606]
[1770572631334,0.5581774,2094.2,2093.4,2.01255024]
[1770572631534,0.5581774,2094.2,2093.5,0.58681849]
[1770572631736,0.5581774,2094.2,2093.6,1.18670175]
[1770572632637,0.5581774,2094.2,2093.6,1.77161534]
[1770572633437,0.5581774,2094.2,2093.7,0.58491359]
[1770572634738,0.5581774,2094.2,2093.6,1.77502236]
[1770572635237,0.5581774,2094.2,2093.7,0.58832061]
[1770572636035,0.5581774,2094.2,2093.4,2.01405236]
[1770572636435,0.5581774,2094.2,2093.5,0.58832061]
[1770572636640,0.54992716,2094.1,2093.4,0.82675884]
[1770572636940,0.54992716,2094.1,2093.4,2.01346059]
[1770572637639,0.54992716,2094.1,2093.7,0.58772884]
[1770572637936,0.54992716,2094.1,2093.7,0.08892884]
[1770572638138,0.54992716,2094.1,2093.6,1.18670175]
[1770572638337,0.54992716,2094.1,2093.6,1.27563059]
[1770572641637,0.54992716,2094.2,2093.9,0.08841469]
[1770572642037,0.54992716,2094.6,2094.1,1.18670175]
[1770572642246,0.54992716,2095.2,2094.3,1.18670175]
[1770572642439,0.54992716,2095.2,2094.3,1.73662891]
[1770572642742,0.55465203,2095.2,2094.3,1.74012142]
[1770572642939,0.55465203,2095.2,2094.4,0.54979375]
[1770572643344,0.55465203,2095.2,2094.4,0.05099375]
[1770572643546,0.55465203,2095.2,2094.3,1.24118801]
[1770572643839,0.55465203,2095.2,2094.4,0.05099375]
[1770572644946,0.55465203,2095.2,2094.6,0.04660488]
[1770572645136,0.55465203,2095.2,2094.4,0.04660488]
[1770572645332,0.55465203,2095.2,2094.3,1.23679914]
[1770572645547,0.55465203,2095.2,2094.4,0.04660488]
[1770572646243,0.55465203,2095.2,2094.5,1.23330663]
[1770572646941,0.55465203,2095.2,2094.6,0.03913598]
[1770572647138,0.55465203,2095.2,2094.5,1.18670175]
[1770572647341,1.74135378,2095.2,2094.3,0.00349251]
[1770572647651,0.57212166,2094.9,2094.3,0.00349251]
[1770572647846,0.57212166,2094.9,2094.3,0.04262849]
[1770572648646,0.57212166,2094.9,2094.5,1.23203678]
[1770572648939,0.56902214,2095.1,2094.3,0.00349251]
[1770572649142,0.56902214,2095.1,2094.3,0.04882754]
[1770572649339,0.56902214,2095.1,2094.3,0.00349251]
[1770572649734,0.56902214,2095.1,2094.3,0.04882754]
[1770572651145,0.56902214,2095.1,2094.3,1.23552929]
[1770572651339,1.18670175,2094.8,2093.9,2.81037252]
[1770572651539,0.56755119,2094.5,2093.8,0.04827692]
[1770572651744,0.56755119,2094.5,2093.9,0.04827692]
[1770572652443,0.56755119,2094.8,2094.3,0.04827692]
[1770572652649,0.56755119,2094.8,2094.0,1.42566175]
[1770572652842,0.56755119,2094.8,2094.0,1.47497146]
[1770572654849,0.56755119,2094.8,2094.3,0.02918428]
[1770572655148,0.56755119,2094.8,2094.1,0.23895]
[1770572656452,0.56755119,2094.8,2094.2,0.01204136]
[1770572658852,0.56755119,2094.8,2094.1,0.25999462]
[1770572660654,0.56755119,2094.8,2094.2,0.01664593]
[1770572660954,0.56755119,2094.8,2094.1,0.23895]
[1770572663854,0.54992061,2094.5,2093.8,0.23669639]
[1770572666349,0.54992061,2094.5,2093.7,2.81037252]
[1770572666552,0.54992061,2094.5,2093.6,9.14030887]
[1770572666553,0.54992061,2094.5,2093.6,3.28680594]
[1770572667753,0.54992061,2094.3,2093.6,3.04937252]
[1770572668359,0.54992061,2094.3,2093.6,0.239]
[1770572668554,0.54992061,2093.9,2093.2,3.15027025]
[1770572669653,0.54992061,2093.9,2093.3,0.24229509]
[1770572672361,0.54992061,2093.9,2093.2,0.57694919]
[1770572672556,0.54992061,2093.9,2093.3,0.23683746]
[1770572674163,0.54992061,2094.4,2093.3,0.23683746]
[1770572675469,0.54992061,2094.4,2093.3,0.47586746]
[1770572675664,0.54992061,2094.4,2093.4,0.23730894]
[1770572678968,0.54992061,2094.4,2093.7,0.23856831]
[1770572679860,0.54992061,2094.5,2093.9,0.23856831]
[1770572680668,0.54992061,2094.9,2093.9,0.23856831]
[1770572681170,0.54992061,2094.9,2094.1,0.23738843]
[1770572681564,0.54992061,2094.9,2094.0,0.23896]
[1770572682472,0.54992061,2094.9,2094.1,0.00172462]
[1770572686583,0.54992061,2094.9,2094.0,0.23896]
[1770572686872,0.54992061,2094.9,2094.0,0.24094935]
[1770572687073,0.54992061,2094.9,2094.1,0.00198935]
[1770572688775,0.54992061,2094.9,2094.0,0.24208686]
[1770572689074,0.54992061,2094.9,2094.0,0.23896]
[1770572689572,0.54992061,2094.9,2093.7,3.05245938]
[1770572690574,0.54992061,2094.9,2093.7,0.24208686]
[1770572698285,0.54992061,2094.9,2093.6,0.239]
[1770572698579,1.1873493,2094.7,2093.6,0.48040934]
[1770572698777,0.55075713,2094.6,2093.6,0.239]
[1770572698978,0.55075713,2094.6,2093.6,0.48040934]
[1770572700177,0.55075713,2094.6,2093.7,0.24140934]
[1770572700879,0.55075713,2094.3,2093.4,2.81037252]
[1770572701181,0.55075713,2094.0,2093.2,0.33989773]
[1770572701379,0.55075713,2094.5,2093.3,0.24098692]
[1770572701583,0.55075713,2094.5,2093.3,0.23904]
[1770572702382,0.55075713,2094.5,2093.4,0.23903]
[1770572702679,0.55075713,2094.5,2093.6,0.239]
[1770572706482,0.55075713,2094.5,2093.7,0.00160195]
[1770572706682,0.55075713,2094.5,2093.6,0.239]
[1770572707889,0.55075713,2094.5,2093.3,2.81037252]
[1770572708185,0.55075713,2094.5,2093.4,2.81037252]
[1770572708687,0.55075713,2094.5,2093.4,2.81835162]
[1770572709094,0.55075713,2094.5,2093.4,0.0079791]
[1770572710887,0.55075713,2094.5,2093.4,2.81037252]
[1770572712483,0.55075713,2094.5,2093.3,2.21868244]
[1770572712685,7.07933958,2094.3,2092.9,0.59169007]
[1770572712990,5.71735882,2094.0,2092.9,0.59169007]
[1770572713189,22.814,2093.9,2092.9,0.59169007]
[1770572713591,22.814,2093.9,2092.7,0.59169007]
[1770572714798,0.00103866,2093.8,2092.7,0.59169007]
[1770572716905,0.00103866,2093.8,2092.7,0.09169007]
[1770572717605,0.50014494,2093.6,2092.4,0.55044944]
[1770572717806,0.50482997,2093.6,2092.4,0.55044944]
[1770572720396,0.50482997,2093.6,2092.5,0.55044944]
[1770572720604,0.00468503,2093.6,2092.5,0.55044944]
[1770572720897,0.50993602,2093.6,2092.5,0.55044944]
[1770572721706,0.00468503,2093.6,2092.7,0.55044944]
[1770572722207,0.00468503,2093.6,2093.1,0.55044944]
[1770572726508,31.39965648,2094.0,2093.1,0.55044944]
[1770572727708,31.40566642,2094.0,2093.1,0.55513446]
[1770572728210,0.51334151,2093.9,2093.1,0.55513446]
[1770572730111,0.51278133,2093.6,2092.8,0.55044944]
[1770572732412,0.51278133,2093.6,2092.2,4.23707363]
[1770572732623,0.51121819,2093.3,2092.2,0.55044944]
[1770572733709,0.51121819,2093.3,2092.3,0.55044944]
[1770572734714,0.51121819,2093.3,2092.1,0.55044944]
[1770572737819,0.50554975,2093.2,2092.1,0.55044944]
[1770572745230,0.50676416,2092.9,2091.9,0.56041304]
[1770572745524,0.50676416,2092.9,2092.0,0.56041304]
[1770572745725,0.50676416,2092.9,2091.5,0.56041304]
[1770572745923,0.50676416,2092.9,2091.6,0.56041304]
[1770572747526,0.58217105,2092.5,2091.6,0.56041304]
[1770572747726,0.58811888,2092.5,2091.6,0.56041304]
[1770572749229,0.58217105,2092.3,2091.1,0.56041304]
[1770572749535,0.58217105,2092.2,2091.1,0.56041304]
[1770572750416,0.58217105,2092.2,2090.5,0.56041304]
[1770572751324,0.58217105,2092.2,2090.6,0.56041304]
[1770572753029,0.58217105,2092.2,2090.7,0.56041304]
[1770572754633,0.58217105,2092.2,2090.8,0.56041304]
[1770572757529,0.58217105,2092.0,2090.8,0.56041304]
[1770572764026,0.58217105,2091.8,2090.8,0.56041304]
[1770572764332,0.58217105,2091.8,2090.6,0.56041304]
[1770572769534,0.58217105,2091.8,2090.3,0.56041304]
[1770572769735,0.58217105,2091.4,2090.3,0.56041304]
[1770572770337,0.58217105,2091.4,2090.4,0.56041304]
[1770572770738,0.58217105,2091.3,2090.4,0.56041304]
[1770572774439,0.58217105,2091.7,2090.5,0.56041304]
[1770572775337,0.58217105,2091.7,2090.6,0.5455545]
[1770572776245,0.59006379,2091.7,2090.6,0.5455545]
[1770572777244,0.59006379,2091.7,2090.7,0.5455545]
[1770572780546,0.59006379,2091.7,2090.6,2.83676545]
[1770572780850,0.59006379,2091.6,2090.6,0.5455545]
[1770572781146,0.59006379,2091.6,2090.6,0.0455545]
[1770572782340,0.59006379,2091.5,2090.6,0.0455545]
[1770572782850,0.59006379,2091.5,2090.7,0.34948743]
[1770572783146,0.59006379,2091.5,2090.6,2.83676545]
[1770572786451,0.59006379,2091.5,2090.7,0.00178888]
[1770572787550,0.59089162,2091.3,2090.5,2.83676545]
[1770572787856,0.59089162,2091.2,2090.4,0.00178888]
[1770572788349,0.59089162,2091.6,2090.7,0.00178888]
[1770572788539,0.59089162,2091.6,2090.8,0.00462919]
[1770572789747,0.59089162,2091.6,2090.7,2.84139464]
[1770572790147,0.59089162,2091.6,2090.8,0.00462919]
[1770572790745,0.59089162,2091.6,2090.6,2.83676545]
[1770572790950,0.59089162,2091.6,2090.6,4.42206924]
[1770572791147,0.59089162,2091.6,2090.6,2.83676545]
[1770572791448,0.59089162,2091.6,2090.5,2.83676545]
[1770572792548,0.59089162,2091.6,2090.6,0.0114727]
[1770572795552,0.59089162,2091.6,2090.7,0.00984678]
[1770572798255,0.59089162,2091.6,2090.8,0.00620028]
[1770572798657,0.59089162,2091.6,2090.7,2.83676545]
[1770572800558,0.59089162,2091.6,2090.8,0.00121777]
[1770572801259,0.59117718,2091.6,2090.9,0.00121777]
[1770572801656,0.59117718,2091.6,2090.8,2.33798322]
[1770572802558,0.59117718,2091.6,2090.9,0.00722105]
[1770572803859,0.59117718,2091.6,2090.8,4.23707363]
[1770572806863,0.59500663,2091.8,2090.8,4.47639363]
[1770572807063,0.59500663,2091.8,2090.8,8.8998811]
[1770572807265,0.59500663,2091.8,2090.9,4.42348747]
[1770572807457,0.59500663,2091.8,2091.0,4.42348747]
[1770572807662,0.59500663,2091.8,2090.8,4.47639363]
[1770572808363,0.59500663,2091.8,2090.9,4.23707363]
[1770572808764,0.59500663,2091.8,2091.0,4.23707363]
[1770572809270,0.59453144,2092.4,2091.4,0.23925]
[1770572809571,0.60047927,2092.5,2091.6,4.23707363]
[1770572810376,0.60047927,2092.5,2091.5,4.47631363]
[1770572811272,0.60047927,2092.5,2091.5,0.23924]
[1770572812568,0.60047927,2092.5,2091.5,4.64090262]
[1770572812876,0.60047927,2092.5,2091.5,0.23924]
[1770572815770,0.60047927,2092.5,2091.2,4.23707363]
[1770572815971,0.60047927,2092.5,2090.7,4.47640363]
[1770572816171,0.59575991,2092.4,2090.8,4.39672226]
[1770572816373,0.59575991,2092.4,2090.7,0.23933]
[1770572817079,0.59576936,2091.9,2090.7,0.23933]
[1770572819784,0.59576936,2091.9,2090.7,4.636399]
[1770572819978,0.59576936,2091.9,2090.8,4.397069]
[1770572820177,0.59576936,2091.9,2090.7,0.23933]
[1770572820379,0.59830594,2092.1,2091.0,0.2393]
[1770572820586,0.59830594,2092.1,2090.6,4.23707363]
[1770572820880,0.59830594,2092.1,2090.7,4.39924693]
[1770572821072,0.59830594,2092.1,2090.5,4.47643363]
[1770572821274,0.59830594,2092.1,2090.5,4.23707363]
[1770572821976,0.59830594,2092.1,2090.6,8.63632426]
[1770572822178,0.59830594,2092.1,2090.7,4.39925063]
[1770572822379,0.59830594,2092.1,2090.8,4.39925063]
[1770572822579,0.59830594,2092.1,2090.7,0.23934]
[1770572830692,0.59830594,2092.1,2090.7,4.47641363]
[1770572833793,0.59830594,2092.1,2090.8,0.23932]
[1770572834193,0.59830594,2092.1,2090.8,4.47639363]
[1770572836490,0.59830594,2092.1,2090.8,8.87245587]
[1770572836686,0.59830594,2092.1,2090.9,4.39606224]
[1770572836888,0.59830594,2092.1,2090.8,4.47639363]
[1770572838195,0.59830594,2092.1,2090.8,8.89911042]
[1770572838396,0.59830594,2092.1,2090.9,4.42271679]
[1770572838598,0.59830594,2092.1,2090.8,4.47639363]
[1770572840899,0.59826237,2092.0,2090.8,4.47639363]
[1770572842002,0.59826237,2092.3,2091.3,0.23926]
[1770572842504,0.59826237,2092.3,2091.4,0.00094291]
[1770572844807,0.59826237,2092.3,2091.2,0.01652547]
[1770572845104,0.59826237,2092.3,2091.3,0.01652547]
[1770572845508,0.59826237,2092.3,2091.4,0.01652547]
[1770572846709,0.59826237,2092.3,2091.1,0.0122972]
[1770572846910,0.59826237,2092.3,2091.2,0.0122972]
[1770572852905,0.59826237,2092.3,2091.0,4.23707363]
[1770572852906,0.59826237,2092.3,2091.3,0.02255118]
[1770572853506,0.59826237,2092.3,2091.4,0.02255118]
[1770572853909,0.59826237,2092.3,2091.2,4.23707363]
[1770572854314,0.59826237,2092.3,2091.2,4.47635363]
[1770572854516,0.59826237,2092.3,2091.3,0.01439332]
[1770572854715,0.59826237,2092.3,2091.4,0.01439332]
[1770572856416,0.59826237,2092.3,2091.5,0.01439332]